fUST/lending_fUST_20241217
["ID","MTS","AMOUNT","RATE_DAILY","PERIOD"]
[345599720,1734377435359,-500.0,0.00027945,7]
[345599721,1734377435369,-343.73,0.00027945,7]
[345599722,1734377435378,-500.0,0.00027945,7]
[345599723,1734377435387,-500.0,0.00027945,7]
[345599724,1734377435397,-500.0,0.00027945,7]
[345599725,1734377435406,-500.0,0.00027945,7]
[345599726,1734377435416,-500.0,0.00027945,7]
[345599727,1734377435426,-533.49,0.00027945,7]
[345599728,1734377435436,-500.0,0.00027945,7]
[345599729,1734377435446,-500.0,0.00027945,7]
[345599730,1734377435456,-631.62,0.00027945,2]
[345599731,1734377435466,-500.0,0.00027945,7]
[345599732,1734377435476,-500.0,0.00027945,7]
[345599733,1734377435486,-500.0,0.00027945,7]
[345599734,1734377435495,-500.0,0.00027945,7]
[345599735,1734377435504,-500.0,0.00027945,7]
[345599736,1734377435514,-500.0,0.00027945,7]
[345599737,1734377435524,-500.0,0.00027945,7]
[345599738,1734377435533,-500.0,0.00027945,2]
[345599739,1734377435543,-500.0,0.00027945,7]
[345599740,1734377435552,-500.0,0.00027945,7]
[345599741,1734377435567,-500.0,0.00027945,7]
[345599742,1734377435576,-3438.72,0.00027945,7]
[345599743,1734377435586,-1692.88,0.00027945,7]
[345599744,1734377435595,-2992.99,0.00027945,7]
[345599745,1734377435606,-3976.78,0.00027945,7]
[345599746,1734377435615,-16669.58,0.00027945,7]
[345599747,1734377435624,-873.01,0.00027945,7]
[345599748,1734377435634,-976.59,0.00027945,7]
[345599749,1734377435644,-500.0,0.00027945,7]
[345599750,1734377435654,-500.0,0.00027945,7]
[345599751,1734377435664,-500.0,0.00027945,7]
[345599752,1734377435673,-865.26,0.00027945,7]
[345599753,1734377435685,-500.0,0.00027945,7]
[345599754,1734377435695,-500.0,0.00027945,7]
[345599755,1734377435705,-500.0,0.00027945,7]
[345599756,1734377435715,-548.79,0.00027945,7]
[345599757,1734377435724,-1080.22,0.00027945,7]
[345599758,1734377435734,-500.0,0.00027945,7]
[345599759,1734377435893,-777.63,0.00027945,7]
[345599760,1734377435903,-605.77,0.00027945,7]
[345599761,1734377435913,-1635.17,0.00027945,7]
[345599762,1734377435923,-500.0,0.00027945,7]
[345599763,1734377435933,-782.72,0.00027945,7]
[345599764,1734377435943,-500.0,0.00027945,7]
[345599765,1734377435952,-500.0,0.00027945,7]
[345599766,1734377435961,-886.74,0.00027945,7]
[345599767,1734377435971,-5123.72,0.00027945,7]
[345599768,1734377435980,-500.0,0.00027945,7]
[345599769,1734377435989,-813.59,0.00027945,7]
[345599770,1734377436000,-771.99,0.00027945,7]
[345599771,1734377436009,-613.52,0.00027945,7]
[345599772,1734377436018,-500.0,0.00027945,7]
[345599773,1734377436028,-521.63,0.00027945,7]
[345599774,1734377436037,-813.75,0.00027945,7]
[345599775,1734377436047,-500.0,0.00027945,7]
[345599776,1734377436056,-587.77,0.00027945,7]
[345599777,1734377436065,-1187.15,0.00027945,5]
[345599778,1734377436075,-500.0,0.00027945,7]
[345599779,1734377436084,-1321.9686,0.00027999,15]
[345599780,1734377436094,-300.0,0.00028,13]
[345599781,1734377436103,-532.093,0.00028,13]
[345599782,1734377436113,-244.0,0.00028,2]
[345599783,1734377436122,-666.0,0.00028119,2]
[345599784,1734377436132,-385.80247394,0.00028211,2]
[345599785,1734377436141,-500.0,0.00028219,7]
[345599786,1734377436150,-440.82407083,0.00028219,7]
[345599787,1734377436159,-500.0,0.00028219,7]
[345599788,1734377436169,-761.28,0.00028219,7]
[345599789,1734377436179,-500.0,0.00028219,7]
[345599790,1734377436190,-500.0,0.00028219,7]
[345599791,1734377436199,-500.0,0.00028219,7]
[345599792,1734377436209,-500.0,0.00028219,7]
[345599793,1734377436218,-500.0,0.00028219,7]
[345599794,1734377436227,-500.0,0.00028219,7]
[345599795,1734377436237,-533.49,0.00028219,7]
[345599796,1734377436248,-500.0,0.00028219,7]
[345599797,1734377436258,-500.0,0.00028219,7]
[345599798,1734377436267,-631.62,0.00028219,2]
[345599799,1734377436276,-500.0,0.00028219,7]
[345599800,1734377436286,-500.0,0.00028219,7]
[345599801,1734377436294,-500.0,0.00028219,7]
[345599802,1734377436303,-500.0,0.00028219,7]
[345599803,1734377436313,-500.0,0.00028219,7]
[345599804,1734377436323,-500.0,0.00028219,7]
[345599805,1734377436332,-500.0,0.00028219,7]
[345599806,1734377436341,-500.0,0.00028219,2]
[345599807,1734377436350,-500.0,0.00028219,7]
[345599808,1734377436359,-500.0,0.00028219,7]
[345599809,1734377436368,-469.91166599,0.00028219,7]
[345599810,1734377436378,-3438.72,0.00028219,7]
[345599811,1734377436387,-1692.88,0.00028219,7]
[345599812,1734377436396,-2992.99,0.00028219,7]
[345599813,1734377436405,-3976.78,0.00028219,7]
[345599814,1734377436414,-16669.58,0.00028219,7]
[345599815,1734377436424,-873.01,0.00028219,7]
[345599816,1734377436434,-976.59,0.00028219,7]
[345599817,1734377436444,-500.0,0.00028219,7]
[345599818,1734377436459,-500.0,0.00028219,7]
[345599819,1734377436468,-500.0,0.00028219,7]
[345599820,1734377436478,-865.26,0.00028219,7]
[345599821,1734377436488,-500.0,0.00028219,7]
[345599822,1734377436497,-500.0,0.00028219,7]
[345599823,1734377436507,-500.0,0.00028219,7]
[345599824,1734377436517,-548.79,0.00028219,7]
[345599825,1734377436527,-1080.22,0.00028219,7]
[345599826,1734377436538,-500.0,0.00028219,7]
[345599827,1734377436547,-777.63,0.00028219,7]
[345599828,1734377436559,-605.77,0.00028219,7]
[345599829,1734377436568,-1635.17,0.00028219,7]
[345599830,1734377436578,-500.0,0.00028219,7]
[345599831,1734377436588,-782.72,0.00028219,7]
[345599832,1734377436599,-500.0,0.00028219,7]
[345599833,1734377436608,-500.0,0.00028219,7]
[345599834,1734377436618,-886.74,0.00028219,7]
[345599835,1734377436628,-5123.72,0.00028219,7]
[345599836,1734377436637,-500.0,0.00028219,7]
[345599837,1734377436648,-813.59,0.00028219,7]
[345599838,1734377436658,-771.99,0.00028219,7]
[345599839,1734377436668,-613.52,0.00028219,7]
[345599840,1734377436678,-500.0,0.00028219,7]
[345599841,1734377436696,-521.63,0.00028219,7]
[345599842,1734377436706,-813.75,0.00028219,7]
[345599843,1734377436716,-500.0,0.00028219,7]
[345599844,1734377436725,-587.77,0.00028219,7]
[345599845,1734377436735,-1187.15,0.00028219,5]
[345599846,1734377436745,-500.0,0.00028219,7]
[345599847,1734377436755,-533.358,0.0002825,2]
[345599848,1734377436769,-16327.82,0.000283,2]
[345599849,1734377436780,-185.9,0.000284,31]
[345599850,1734377436790,-185.9,0.000284,31]
[345599851,1734377436800,-185.9,0.000284,31]
[345599852,1734377436810,-185.9,0.000284,31]
[345599853,1734377436820,-185.9,0.000284,31]
[345599854,1734377436830,-185.9,0.000284,31]
[345599855,1734377436840,-185.9,0.000284,31]
[345599856,1734377436850,-185.9,0.000284,31]
[345599857,1734377436859,-185.9,0.000284,31]
[345599858,1734377436869,-185.9,0.000284,31]
[345599859,1734377436878,-185.9,0.000284,31]
[345599860,1734377436888,-185.9,0.000284,31]
[345599861,1734377436900,-500.0,0.00028493,7]
[345599862,1734377436909,-500.0,0.00028493,7]
[345599863,1734377436919,-761.28,0.00028493,7]
[345599864,1734377436928,-500.0,0.00028493,7]
[345599865,1734377436945,-500.0,0.00028493,7]
[345599866,1734377436954,-500.0,0.00028493,7]
[345599867,1734377436963,-500.0,0.00028493,7]
[345599868,1734377436973,-500.0,0.00028493,7]
[345599869,1734377436982,-500.0,0.00028493,7]
[345599870,1734377436992,-533.49,0.00028493,7]
[345599871,1734377437002,-500.0,0.00028493,7]
[345599872,1734377437012,-500.0,0.00028493,7]
[345599873,1734377437021,-631.62,0.00028493,2]
[345599874,1734377437032,-500.0,0.00028493,7]
[345599875,1734377437041,-500.0,0.00028493,7]
[345599876,1734377437051,-500.0,0.00028493,7]
[345599877,1734377437061,-500.0,0.00028493,7]
[345599878,1734377437071,-500.0,0.00028493,7]
[345599879,1734377437080,-217.1127062,0.00028493,7]
[345599880,1734377437090,-500.0,0.00028493,7]
[345599881,1734377437099,-500.0,0.00028493,2]
[345599882,1734377437108,-500.0,0.00028493,7]
[345599883,1734377437118,-500.0,0.00028493,7]
[345599884,1734377437128,-3438.72,0.00028493,7]
[345599885,1734377437137,-1692.88,0.00028493,7]
[345599886,1734377437148,-2992.99,0.00028493,7]
[345599887,1734377437157,-3976.78,0.00028493,7]
[345599888,1734377437166,-16669.58,0.00028493,7]
[345599889,1734377437176,-873.01,0.00028493,7]
[345599890,1734377437189,-976.59,0.00028493,7]
[345599891,1734377437199,-500.0,0.00028493,7]
[345599892,1734377437208,-500.0,0.00028493,7]
[345599893,1734377437217,-500.0,0.00028493,7]
[345599894,1734377437227,-865.26,0.00028493,7]
[345599895,1734377437237,-500.0,0.00028493,7]
[345599896,1734377437247,-500.0,0.00028493,7]
[345599897,1734377437256,-500.0,0.00028493,7]
[345599898,1734377437266,-548.79,0.00028493,7]
[345599899,1734377437276,-1080.22,0.00028493,7]
[345599900,1734377437287,-500.0,0.00028493,7]
[345599901,1734377437296,-777.63,0.00028493,7]
[345599902,1734377437306,-605.77,0.00028493,7]
[345599903,1734377437316,-1635.17,0.00028493,7]
[345599904,1734377437325,-500.0,0.00028493,7]
[345599905,1734377437336,-782.72,0.00028493,7]
[345599906,1734377437346,-500.0,0.00028493,7]
[345599907,1734377437355,-500.0,0.00028493,7]
[345599908,1734377437364,-886.74,0.00028493,7]
[345599909,1734377437374,-5123.72,0.00028493,7]
[345599910,1734377437383,-500.0,0.00028493,7]
[345599911,1734377437393,-813.59,0.00028493,7]
[345599912,1734377437402,-771.99,0.00028493,7]
[345599913,1734377437412,-613.52,0.00028493,7]
[345599914,1734377437422,-500.0,0.00028493,7]
[345599915,1734377437432,-521.63,0.00028493,7]
[345599916,1734377437443,-813.75,0.00028493,7]
[345599917,1734377437452,-500.0,0.00028493,7]
[345599918,1734377437461,-587.77,0.00028493,7]
[345599919,1734377437471,-1187.15,0.00028493,5]
[345599921,1734377437481,-500.0,0.00028493,7]
[345599923,1734377437490,-940.91,0.000285,30]
[345599924,1734377437500,-166.0,0.00028558,3]
[345599926,1734377437510,-168.0,0.00028558,3]
[345599927,1734377437520,-600.0,0.00028602,2]
[345599928,1734377437530,-500.0,0.00028766,2]
[345599929,1734377437541,-166.93207219,0.00028766,2]
[345599930,1734377437552,-500.0,0.00028766,2]
[345599931,1734377437565,-225.72703376,0.00028766,2]
[345599932,1734377437574,-500.0,0.00028766,2]
[345599933,1734377437584,-247.72130828,0.00028766,2]
[345599934,1734377437593,-500.0,0.00028767,7]
[345599936,1734377437605,-500.0,0.00028767,7]
[345599938,1734377437615,-761.28,0.00028767,7]
[345599939,1734377437625,-434.48257507,0.00028767,7]
[345599940,1734377437635,-500.0,0.00028767,7]
[345599941,1734377437645,-500.0,0.00028767,7]
[345599942,1734377437655,-500.0,0.00028767,7]
[345599944,1734377437664,-500.0,0.00028767,7]
[345599946,1734377437673,-500.0,0.00028767,7]
[345599948,1734377437685,-533.49,0.00028767,7]
[345599950,1734377437694,-500.0,0.00028767,7]
[345599952,1734377437704,-500.0,0.00028767,7]
[345599954,1734377437713,-631.62,0.00028767,2]
[345599956,1734377437723,-500.0,0.00028767,7]
[345599958,1734377437734,-500.0,0.00028767,7]
[345599960,1734377437743,-500.0,0.00028767,7]
[345599962,1734377437753,-500.0,0.00028767,7]
[345599964,1734377437762,-500.0,0.00028767,7]
[345599966,1734377437772,-500.0,0.00028767,7]
[345599968,1734377437782,-500.0,0.00028767,2]
[345599970,1734377437791,-500.0,0.00028767,7]
[345599972,1734377437801,-500.0,0.00028767,7]
[345599973,1734377437810,-500.0,0.00028767,9]
[345599975,1734377437820,-3438.72,0.00028767,7]
[345599976,1734377437829,-1692.88,0.00028767,7]
[345599977,1734377437839,-2992.99,0.00028767,7]
[345599979,1734377437848,-3976.78,0.00028767,7]
[345599980,1734377437858,-16669.58,0.00028767,7]
[345599981,1734377437867,-873.01,0.00028767,7]
[345599982,1734377437876,-976.59,0.00028767,7]
[345599983,1734377437886,-500.0,0.00028767,7]
[345599984,1734377437895,-500.0,0.00028767,7]
[345599985,1734377437905,-500.0,0.00028767,7]
[345599986,1734377437915,-865.26,0.00028767,7]
[345599987,1734377437925,-500.0,0.00028767,7]
[345599988,1734377437938,-500.0,0.00028767,7]
[345599990,1734377437947,-500.0,0.00028767,7]
[345599991,1734377437957,-548.79,0.00028767,7]
[345599992,1734377437966,-1080.22,0.00028767,7]
[345599993,1734377437975,-500.0,0.00028767,7]
[345599994,1734377437985,-777.63,0.00028767,7]
[345599995,1734377437994,-605.77,0.00028767,7]
[345599996,1734377438004,-1635.17,0.00028767,7]
[345599997,1734377438013,-500.0,0.00028767,7]
[345599998,1734377438023,-782.72,0.00028767,7]
[345599999,1734377438032,-500.0,0.00028767,7]
[345600000,1734377438042,-500.0,0.00028767,7]
[345600001,1734377438052,-886.74,0.00028767,7]
[345600002,1734377438061,-5123.72,0.00028767,7]
[345600003,1734377438071,-500.0,0.00028767,7]
[345600004,1734377438081,-813.59,0.00028767,7]
[345600005,1734377438090,-771.99,0.00028767,7]
[345600006,1734377438100,-613.52,0.00028767,7]
[345600007,1734377438110,-500.0,0.00028767,7]
[345600008,1734377438120,-521.63,0.00028767,7]
[345600009,1734377438129,-813.75,0.00028767,7]
[345600010,1734377438139,-500.0,0.00028767,7]
[345600011,1734377438149,-587.77,0.00028767,7]
[345600012,1734377438159,-1187.15,0.00028767,5]
[345600013,1734377438168,-500.0,0.00028767,7]
[345600014,1734377438178,-478.3802775,0.00028795,30]
[345600015,1734377438189,-185.9,0.000288,31]
[345600016,1734377438198,-185.9,0.000288,31]
[345600017,1734377438208,-185.9,0.000288,31]
[345600018,1734377438218,-185.9,0.000288,31]
[345600019,1734377438228,-185.9,0.000288,31]
[345600020,1734377438238,-185.9,0.000288,31]
[345600021,1734377438248,-185.9,0.000288,31]
[345600022,1734377438258,-185.9,0.000288,31]
[345600023,1734377438268,-185.9,0.000288,31]
[345600024,1734377438278,-185.9,0.000288,31]
[345600025,1734377438288,-185.9,0.000288,31]
[345600026,1734377438298,-185.9,0.000288,31]
[345600027,1734377438308,-185.9,0.000288,31]
[345600028,1734377438318,-185.9,0.000288,31]
[345600029,1734377438329,-185.9,0.000288,31]
[345600030,1734377438339,-185.9,0.000288,31]
[345600031,1734377438350,-185.9,0.000288,31]
[345600032,1734377438360,-185.9,0.000288,31]
[345600033,1734377438371,-185.9,0.000288,31]
[345600034,1734377438380,-185.9,0.000288,31]
[345600035,1734377438391,-185.9,0.000288,31]
[345600036,1734377438400,-185.9,0.000288,31]
[345600037,1734377438410,-185.9,0.000288,31]
[345600038,1734377438420,-185.9,0.000288,31]
[345600039,1734377438429,-184.279,0.00028999,21]
[345600040,1734377438442,-500.0,0.00029041,7]
[345600041,1734377438451,-339.97201719,0.00029041,7]
[345600042,1734377438464,-761.28,0.00029041,7]
[345600043,1734377438474,-500.0,0.00029041,7]
[345600044,1734377438483,-500.0,0.00029041,7]
[345600045,1734377438493,-500.0,0.00029041,7]
[345600046,1734377438502,-500.0,0.00029041,7]
[345600047,1734377438512,-500.0,0.00029041,7]
[345600048,1734377438521,-533.49,0.00029041,7]
[345600049,1734377438531,-500.0,0.00029041,7]
[345600050,1734377438540,-500.0,0.00029041,7]
[345600051,1734377438550,-631.62,0.00029041,2]
[345600052,1734377438560,-500.0,0.00029041,7]
[345600053,1734377438570,-500.0,0.00029041,7]
[345600054,1734377438579,-500.0,0.00029041,7]
[345600055,1734377438590,-500.0,0.00029041,7]
[345600056,1734377438601,-500.0,0.00029041,7]
[345600057,1734377438611,-344.21731036,0.00029041,7]
[345600058,1734377438620,-500.0,0.00029041,2]
[345600059,1734377438630,-500.0,0.00029041,7]
[345600060,1734377438639,-500.0,0.00029041,7]
[345600061,1734377438650,-3438.72,0.00029041,7]
[345600062,1734377438659,-1692.88,0.00029041,7]
[345600063,1734377438669,-2992.99,0.00029041,7]
[345600064,1734377438679,-3976.78,0.00029041,7]
[345600065,1734377438691,-16669.58,0.00029041,7]
[345600066,1734377438700,-873.01,0.00029041,7]
[345600067,1734377438710,-976.59,0.00029041,7]
[345600068,1734377438720,-500.0,0.00029041,7]
[345600069,1734377438730,-500.0,0.00029041,7]
[345600070,1734377438740,-403.89351674,0.00029041,7]
[345600071,1734377438750,-865.26,0.00029041,7]
[345600072,1734377438759,-500.0,0.00029041,7]
[345600073,1734377438768,-500.0,0.00029041,7]
[345600074,1734377438777,-500.0,0.00029041,7]
[345600075,1734377438786,-548.79,0.00029041,7]
[345600076,1734377438796,-1080.22,0.00029041,7]
[345600077,1734377438805,-500.0,0.00029041,7]
[345600078,1734377438815,-777.63,0.00029041,7]
[345600079,1734377438824,-605.77,0.00029041,7]
[345600080,1734377438834,-1635.17,0.00029041,7]
[345600081,1734377438844,-500.0,0.00029041,7]
[345600082,1734377438853,-782.72,0.00029041,7]
[345600083,1734377438863,-500.0,0.00029041,7]
[345600084,1734377438873,-500.0,0.00029041,7]
[345600085,1734377438883,-886.74,0.00029041,7]
[345600086,1734377438893,-5123.72,0.00029041,7]
[345600087,1734377438902,-315.75881772,0.00029041,7]
[345600088,1734377438911,-813.59,0.00029041,7]
[345600089,1734377438920,-771.99,0.00029041,7]
[345600090,1734377438930,-613.52,0.00029041,7]
[345600092,1734377438942,-500.0,0.00029041,7]
[345600094,1734377438951,-521.63,0.00029041,7]
[345600096,1734377438962,-813.75,0.00029041,7]
[345600098,1734377438971,-500.0,0.00029041,7]
[345600101,1734377438981,-587.77,0.00029041,7]
[345600102,1734377438991,-1187.15,0.00029041,5]
[345600104,1734377439001,-500.0,0.00029041,7]
[345600106,1734377439011,-185.9,0.000291,31]
[345600109,1734377439020,-185.9,0.000291,31]
[345600111,1734377439030,-185.9,0.000291,31]
[345600112,1734377439039,-185.9,0.000291,31]
[345600114,1734377439048,-185.9,0.000291,31]
[345600116,1734377439058,-185.9,0.000291,31]
[345600118,1734377439067,-185.9,0.000291,31]
[345600120,1734377439077,-185.9,0.000291,31]
[345600122,1734377439086,-185.9,0.000291,31]
[345600125,1734377439096,-185.9,0.000291,31]
[345600127,1734377439105,-185.9,0.000291,31]
[345600128,1734377439115,-185.9,0.000291,31]
[345600130,1734377439124,-185.9,0.000291,31]
[345600132,1734377439134,-185.9,0.000291,31]
[345600135,1734377439144,-185.9,0.000291,31]
[345600137,1734377439153,-185.9,0.000291,31]
[345600139,1734377439163,-185.9,0.000291,31]
[345600141,1734377439172,-185.9,0.000291,31]
[345600143,1734377439181,-185.9,0.000291,31]
[345600145,1734377439193,-185.9,0.000291,31]
[345600147,1734377439202,-185.9,0.000291,31]
[345600148,1734377439211,-185.9,0.000291,31]
[345600151,1734377439221,-185.9,0.000291,31]
[345600152,1734377439231,-185.9,0.000291,31]
[345600155,1734377439240,-499.29745413,0.00029315,7]
[345600156,1734377439250,-761.28,0.00029315,7]
[345600159,1734377439260,-500.0,0.00029315,7]
[345600160,1734377439270,-500.0,0.00029315,7]
[345600162,1734377439280,-500.0,0.00029315,7]
[345600165,1734377439291,-500.0,0.00029315,7]
[345600183,1734377439452,-500.0,0.00029315,7]
[345600185,1734377439462,-533.49,0.00029315,7]
[345600187,1734377439472,-500.0,0.00029315,7]
[345600189,1734377439482,-500.0,0.00029315,7]
[345600191,1734377439492,-631.62,0.00029315,2]
[345600194,1734377439502,-500.0,0.00029315,7]
[345600197,1734377439512,-500.0,0.00029315,7]
[345600199,1734377439522,-500.0,0.00029315,7]
[345600201,1734377439532,-500.0,0.00029315,7]
[345600203,1734377439542,-500.0,0.00029315,7]
[345600205,1734377439552,-500.0,0.00029315,2]
[345600207,1734377439566,-500.0,0.00029315,7]
[345600209,1734377439575,-500.0,0.00029315,7]
[345600211,1734377439585,-3438.72,0.00029315,7]
[345600213,1734377439595,-1692.88,0.00029315,7]
[345600216,1734377439607,-2992.99,0.00029315,7]
[345600218,1734377439617,-3976.78,0.00029315,7]
[345600220,1734377439627,-16669.58,0.00029315,7]
[345600222,1734377439638,-873.01,0.00029315,7]
[345600224,1734377439647,-976.59,0.00029315,7]
[345600225,1734377439657,-500.0,0.00029315,7]
[345600228,1734377439667,-500.0,0.00029315,7]
[345600230,1734377439676,-865.26,0.00029315,7]
[345600232,1734377439689,-500.0,0.00029315,7]
[345600234,1734377439699,-500.0,0.00029315,7]
[345600236,1734377439716,-500.0,0.00029315,7]
[345600238,1734377439726,-548.79,0.00029315,7]
[345600240,1734377439735,-1080.22,0.00029315,7]
[345600242,1734377439745,-500.0,0.00029315,7]
[345600244,1734377439755,-777.63,0.00029315,7]
[345600246,1734377439764,-605.77,0.00029315,7]
[345600248,1734377439774,-1635.17,0.00029315,7]
[345600250,1734377439784,-500.0,0.00029315,7]
[345600252,1734377439793,-782.72,0.00029315,7]
[345600254,1734377439805,-500.0,0.00029315,7]
[345600256,1734377439814,-500.0,0.00029315,7]
[345600258,1734377439823,-886.74,0.00029315,7]
[345600260,1734377439833,-5123.72,0.00029315,7]
[345600262,1734377439843,-813.59,0.00029315,7]
[345600264,1734377439852,-771.99,0.00029315,7]
[345600266,1734377439862,-613.52,0.00029315,7]
[345600268,1734377439872,-500.0,0.00029315,7]
[345600270,1734377439882,-521.63,0.00029315,7]
[345600272,1734377439892,-813.75,0.00029315,7]
[345600274,1734377439902,-500.0,0.00029315,7]
[345600276,1734377439911,-587.77,0.00029315,7]
[345600278,1734377439921,-1187.15,0.00029315,5]
[345600280,1734377439931,-500.0,0.00029315,7]
[345600282,1734377439945,-154283.5840365,0.000294,2]
[345600284,1734377439954,-20933.85914319,0.000294,7]
[345600286,1734377439963,-224.2179758,0.00029442,4]
[345600288,1734377439973,-151.0,0.00029455,7]
[345600290,1734377439982,-300.0,0.000295,14]
[345600292,1734377439992,-185.9,0.000295,31]
[345600294,1734377440001,-185.9,0.000295,31]
[345600296,1734377440011,-185.9,0.000295,31]
[345600298,1734377440021,-185.9,0.000295,31]
[345600300,1734377440031,-185.9,0.000295,31]
[345600302,1734377440040,-185.9,0.000295,31]
[345600304,1734377440050,-185.9,0.000295,31]
[345600306,1734377440060,-185.9,0.000295,31]
[345600308,1734377440069,-185.9,0.000295,31]
[345600310,1734377440079,-185.9,0.000295,31]
[345600312,1734377440088,-185.9,0.000295,31]
[345600314,1734377440098,-185.9,0.000295,31]
[345600316,1734377440108,-185.9,0.000295,31]
[345600318,1734377440117,-185.9,0.000295,31]
[345600320,1734377440127,-185.9,0.000295,31]
[345600322,1734377440137,-185.9,0.000295,31]
[345600324,1734377440148,-185.9,0.000295,31]
[345600327,1734377440159,-185.9,0.000295,31]
[345600329,1734377440169,-185.9,0.000295,31]
[345600331,1734377440179,-185.9,0.000295,31]
[345600333,1734377440192,-185.9,0.000295,31]
[345600335,1734377440202,-185.9,0.000295,31]
[345600337,1734377440212,-185.9,0.000295,31]
[345600340,1734377440222,-185.9,0.000295,31]
[345600343,1734377440232,-2998.98979064,0.000295,2]
[345600345,1734377440242,-166.0,0.00029569,3]
[345600347,1734377440251,-166.0,0.00029569,3]
[345600349,1734377440260,-166.0,0.00029569,3]
[345600351,1734377440270,-168.88,0.00029569,3]
[345600353,1734377440280,-761.28,0.00029589,7]
[345600355,1734377440290,-500.0,0.00029589,7]
[345600357,1734377440299,-500.0,0.00029589,7]
[345600359,1734377440309,-500.0,0.00029589,7]
[345600361,1734377440319,-500.0,0.00029589,7]
[345600363,1734377440328,-500.0,0.00029589,7]
[345600365,1734377440338,-533.49,0.00029589,7]
[345600367,1734377440348,-254.88255405,0.00029589,7]
[345600369,1734377440357,-500.0,0.00029589,7]
[345600371,1734377440367,-631.62,0.00029589,2]
[345600373,1734377440376,-500.0,0.00029589,7]
[345600375,1734377440385,-406.97,0.00029589,7]
[345600377,1734377440394,-500.0,0.00029589,7]
[345600379,1734377440404,-500.0,0.00029589,7]
[345600381,1734377440413,-500.0,0.00029589,7]
[345600383,1734377440423,-500.0,0.00029589,2]
[345600385,1734377440432,-500.0,0.00029589,7]
[345600387,1734377440443,-500.0,0.00029589,7]
[345600389,1734377440453,-3438.72,0.00029589,7]
[345600391,1734377440463,-1692.88,0.00029589,7]
[345600393,1734377440472,-2992.99,0.00029589,7]
[345600395,1734377440482,-3976.78,0.00029589,7]
[345600397,1734377440492,-16669.58,0.00029589,7]
[345600399,1734377440502,-873.01,0.00029589,7]
[345600401,1734377440510,-976.59,0.00029589,7]
[345600403,1734377440520,-500.0,0.00029589,7]
[345600405,1734377440530,-500.0,0.00029589,7]
[345600407,1734377440539,-865.26,0.00029589,7]
[345600409,1734377440549,-500.0,0.00029589,7]
[345600411,1734377440563,-500.0,0.00029589,7]
[345600413,1734377440572,-500.0,0.00029589,7]
[345600415,1734377440581,-548.79,0.00029589,7]
[345600417,1734377440590,-1080.22,0.00029589,7]